bitfinex-derivatives/quotes_ETHF0:USTF0_20260121
["timestamp","ask_amount","ask_price","bid_price","bid_amount"]
[1769003504546,0.17115,2924.4,2923.0,0.00512996]
[1769003504744,0.17115,2924.4,2923.0,3.68849104]
[1769003506749,0.17115,2924.4,2923.1,3.6573565]
[1769003507652,0.00417092,2924.5,2923.3,3.6573565]
[1769003508053,0.00512996,2924.2,2923.4,3.6573565]
[1769003508246,0.00417092,2924.5,2923.4,3.6573565]
[1769003509455,0.17116,2924.2,2923.0,6.12088201]
[1769003510055,0.17116,2924.2,2923.0,3.66248646]
[1769003511048,0.00417092,2924.5,2923.3,3.6573565]
[1769003513247,0.00417092,2924.5,2923.4,3.6573565]
[1769003513644,3.75709332,2926.0,2923.2,1.68823532]
[1769003513645,0.17108,2925.7,2924.4,3.6573565]
[1769003513848,3.48377116,2926.7,2924.6,3.6573565]
[1769003514357,3.48377116,2926.7,2925.4,0.00512996]
[1769003514557,0.17103,2926.6,2925.4,0.00784217]
[1769003514757,0.17103,2926.5,2925.4,0.00784217]
[1769003522962,0.17103,2926.4,2925.4,0.00784217]
[1769003524060,3.55310914,2926.4,2925.4,0.00784217]
[1769003524261,0.17106,2926.0,2925.4,0.00784217]
[1769003525458,0.17618996,2926.0,2925.4,0.00784217]
[1769003527257,0.17618996,2926.0,2924.5,3.52888437]
[1769003528364,0.17618996,2926.0,2925.0,0.00512996]
[1769003530161,0.00512996,2926.0,2925.0,3.53401433]
[1769003533262,0.17103,2926.5,2925.0,3.53401433]
[1769003534576,0.00443386,2926.7,2925.0,3.70512433]
[1769003534771,0.171,2927.0,2925.3,0.1711]
[1769003535071,0.171,2927.0,2925.5,3.52888437]
[1769003535268,0.171,2927.0,2925.9,0.00512996]
[1769003535865,3.43020295,2927.0,2925.9,0.00512996]
[1769003536064,0.17102,2926.7,2925.9,0.00512996]
[1769003536369,3.42690711,2926.7,2924.9,2.45839555]
[1769003536568,3.42690711,2926.7,2924.9,9.505]
[1769003536776,0.17103,2926.4,2924.9,9.505]
[1769003538768,3.42690711,2926.7,2924.8,3.69538728]
[1769003539077,0.17108,2925.6,2924.5,0.00242579]
[1769003539469,3.42690711,2925.9,2924.8,0.00512996]
[1769003540471,0.17109,2925.4,2924.8,0.00512996]
[1769003545282,0.1711,2925.3,2924.8,0.00512996]
[1769003547681,0.17112,2924.9,2924.1,2.45839555]
[1769003547891,0.17112,2924.9,2924.0,2.45839555]
[1769003548187,0.17112,2924.9,2923.9,2.45839555]
[1769003548575,0.00512996,2925.3,2924.0,6.15378283]
[1769003548777,0.00512996,2925.3,2924.3,6.15378283]
[1769003548977,0.00856296,2925.3,2924.3,6.15627466]
[1769003550787,0.003433,2925.3,2924.4,3.69538728]
[1769003550981,0.17106,2926.0,2924.6,6.15378283]
[1769003551281,0.17106,2926.0,2924.7,3.69538728]
[1769003551979,0.17547373,2926.0,2924.7,3.69538728]
[1769003552382,0.17547373,2926.0,2924.8,3.69538728]
[1769003552579,0.17547373,2926.0,2924.8,6.15378283]
[1769003554082,0.17547373,2926.0,2924.9,2.45839555]
[1769003554587,0.00512996,2925.7,2924.9,2.45839555]
[1769003554783,0.17547373,2926.0,2924.9,6.15378283]
[1769003554992,0.00441373,2926.0,2925.1,6.15378283]
[1769003555286,0.00441373,2926.0,2925.2,3.69538728]
[1769003556687,0.00066034,2926.0,2925.2,3.69538728]
[1769003557095,0.00066034,2926.0,2925.3,2.45839555]
[1769003557685,3.42690711,2927.0,2925.5,3.69538728]
[1769003557686,0.171,2927.0,2925.5,3.69538728]
[1769003557896,0.171,2927.0,2925.6,6.15378283]
[1769003558089,0.171,2927.0,2925.9,3.69538728]
[1769003558297,0.171,2927.0,2926.0,0.00512996]
[1769003558691,0.17342242,2927.0,2926.0,0.00512996]
[1769003559195,0.17342242,2927.0,2926.0,3.70051724]
[1769003559390,0.17342242,2927.0,2926.0,0.00512996]
[1769003559595,0.17101,2926.8,2926.0,0.00512996]
[1769003559792,0.17102,2926.7,2926.0,0.00512996]
[1769003561086,0.17102,2926.6,2926.0,0.00512996]
[1769003561290,0.17614996,2926.6,2925.3,2.45839555]
[1769003562494,0.17104,2926.3,2925.7,0.00512996]
[1769003562697,0.17104,2926.3,2925.0,3.05068255]
[1769003562698,0.17104,2926.3,2925.0,2.45839555]
[1769003562997,0.17104,2926.3,2925.0,6.15378283]
[1769003563199,0.17104,2926.3,2925.1,2.45839555]
[1769003563697,0.00512996,2926.6,2925.2,3.69538728]
[1769003563904,0.00512996,2926.6,2925.3,2.45839555]
[1769003564403,0.00512996,2926.6,2925.4,3.69538728]
[1769003565103,0.00512996,2926.6,2925.4,6.15378283]
[1769003565299,0.00512996,2926.6,2925.5,5.90543116]
[1769003565502,0.00512996,2926.6,2925.6,3.44703561]
[1769003566590,0.00512996,2926.6,2925.7,3.44703561]
[1769003566800,0.00242242,2927.0,2925.7,3.44703561]
[1769003567001,0.00242242,2927.0,2925.9,3.44703561]
[1769003567907,0.17096,2927.7,2926.1,3.44703561]
[1769003568205,0.17096,2927.7,2926.2,3.45216557]
[1769003568400,0.17096,2927.7,2926.2,44.25216557]
[1769003568900,0.17096,2927.7,2926.6,3.44703561]
[1769003568901,0.00384922,2927.7,2926.6,3.44703561]
[1769003569104,0.00384922,2927.7,2926.6,3.45075287]
[1769003571903,0.17091,2928.6,2926.6,5.90914842]
[1769003572204,0.17091,2928.6,2926.8,3.44703561]
[1769003572601,3.60625167,2928.4,2926.8,3.44703561]
[1769003572904,0.0029848,2928.4,2926.8,3.44703561]
[1769003573095,0.0029848,2928.4,2927.3,0.00512996]
[1769003574203,0.1739048,2928.4,2927.3,0.00512996]
[1769003575300,0.0029848,2928.4,2927.3,3.45216557]
[1769003575695,4.83102912,2929.5,2927.4,3.44703561]
[1769003575895,3.77711167,2929.4,2927.4,3.61800561]
[1769003576100,3.60625167,2929.3,2927.4,3.44703561]
[1769003576290,3.77714167,2928.9,2927.4,3.44703561]
[1769003576697,3.77816446,2928.9,2927.4,3.44703561]
[1769003577599,0.17191279,2928.9,2927.4,3.44703561]
[1769003582097,0.00102279,2928.9,2927.4,3.44703561]
[1769003582812,0.00102279,2928.9,2927.4,3.61800561]
[1769003583006,0.00102279,2928.9,2927.6,3.2952896]
[1769003584003,0.00102279,2928.9,2927.6,3.4662496]
[1769003584604,0.17087,2929.3,2927.8,3.2952896]
[1769003585805,3.36631542,2929.6,2927.8,3.2952896]
[1769003586108,0.17088,2929.0,2927.5,12.7932896]
[1769003586511,0.17088,2929.0,2928.4,0.00512094]
[1769003587405,0.17085,2929.5,2928.4,0.00512094]
[1769003589514,0.17085,2929.5,2928.4,3.30041054]
[1769003589813,0.17082,2930.2,2928.4,3.30041054]
[1769003590814,0.17083,2929.9,2928.4,3.30041054]
[1769003593014,0.1708,2930.4,2928.6,3.2952896]
[1769003593816,3.36631542,2930.8,2928.6,3.2952896]
[1769003593817,0.17081,2930.3,2928.6,3.2952896]
[1769003594022,0.17081,2930.2,2928.6,3.2952896]
[1769003594816,3.36631542,2930.5,2928.6,3.2952896]
[1769003595010,0.17087,2929.3,2928.4,0.00512094]
[1769003595415,3.31379422,2929.8,2928.4,0.00512094]
[1769003596318,0.17087,2929.2,2928.4,0.00512094]
[1769003597931,3.31379422,2929.8,2928.4,0.00512094]
[1769003598322,0.17084,2929.7,2928.4,0.00512094]
[1769003598717,0.17084,2929.7,2928.4,3.17697587]
[1769003601821,0.17085,2929.6,2928.4,3.17697587]
[1769003602222,0.17085,2929.5,2928.4,3.17697587]
[1769003603327,0.17085,2929.5,2928.6,3.17185493]
[1769003603525,0.17085,2929.5,2928.6,5.63025048]
[1769003603726,0.17082,2930.1,2928.7,3.17185493]
[1769003603928,0.17082,2930.1,2928.8,5.63025048]
[1769003604525,0.1708,2930.4,2929.1,3.17185493]
[1769003605124,0.1708,2930.4,2929.1,5.63025048]
[1769003605329,0.1708,2930.4,2929.1,3.17185493]
[1769003605525,0.1708,2930.4,2929.2,3.17185493]
[1769003605833,0.17082,2930.1,2929.1,2.45839555]
[1769003606033,0.17082,2930.1,2929.0,2.45839555]
[1769003606535,0.17082,2930.1,2929.3,0.00512094]
[1769003608931,3.31379422,2930.9,2929.3,0.00512094]
[1769003609541,3.31379422,2930.7,2929.3,0.00512094]
[1769003609829,0.17081,2930.3,2929.3,0.00512094]
[1769003610034,0.17081,2930.2,2929.3,0.00512094]
[1769003610639,0.17082,2930.1,2929.3,0.00512094]
[1769003610834,3.31379422,2930.1,2928.9,2.45839555]
[1769003611040,0.17086,2929.4,2928.7,0.00265854]
[1769003612840,0.00512094,2929.3,2928.8,0.00512094]
[1769003613834,0.17084,2929.7,2928.8,0.00512094]
[1769003614335,3.31379422,2930.6,2928.8,0.00512094]
[1769003614539,3.31379422,2930.6,2928.9,3.17185493]
[1769003614540,0.17082,2930.1,2928.9,3.17185493]
[1769003615436,0.17082,2930.1,2929.0,3.17185493]
[1769003615944,0.17079,2930.6,2929.2,3.17185493]
[1769003616138,3.31379422,2931.1,2929.2,5.63025048]
[1769003616442,3.31379422,2931.0,2929.2,5.63025048]
[1769003616633,0.1708,2930.5,2929.3,3.17185493]
[1769003618039,3.31379422,2931.5,2929.5,3.17185493]
[1769003618243,0.17077,2931.0,2929.6,2.45839555]
[1769003618444,0.17077,2931.0,2929.7,3.17185493]
[1769003618938,0.17077,2931.0,2929.7,5.63025048]
[1769003619130,0.17077,2931.0,2929.8,3.17185493]
[1769003622331,0.1707,2932.2,2930.2,3.17185493]
[1769003622531,0.1707,2932.2,2930.5,3.17185493]
[1769003622736,0.1707,2932.2,2930.7,3.17185493]
[1769003623046,3.31379422,2932.7,2931.1,3.17697587]
[1769003623241,3.31379422,2932.7,2931.1,3.18061989]
[1769003623446,0.17066,2932.8,2931.1,3.18061989]
[1769003624146,3.31379422,2933.9,2931.3,3.17185493]
[1769003624445,0.17063,2933.4,2931.8,3.17185493]
[1769003624643,3.31379422,2933.9,2931.8,3.17185493]
[1769003624837,0.17059,2934.1,2932.0,3.17185493]
[1769003625443,3.37994553,2933.8,2932.0,3.17185493]
[1769003625745,3.37994553,2933.8,2931.3,3.05068255]
[1769003625746,0.00512094,2933.3,2931.5,3.4832819]
[1769003626947,0.00512094,2933.3,2932.1,0.00512094]
[1769003633050,0.00512094,2933.3,2932.1,3.48840284]
[1769003637054,0.00512094,2933.3,2932.1,0.00512094]
[1769003637758,0.00512094,2933.3,2932.1,3.48840284]
[1769003638457,0.17064,2933.1,2932.1,0.00512094]
[1769003639958,0.17064,2933.1,2932.1,3.56265807]
[1769003641563,0.17065,2933.0,2932.1,0.00512094]
[1769003642364,0.00512094,2933.3,2932.1,3.56265807]
[1769003643069,0.17062,2933.6,2932.1,3.56265807]
[1769003643257,0.17062,2933.6,2932.1,3.73335807]
[1769003643657,3.320553,2934.1,2932.1,3.73335807]
[1769003643957,3.491133,2934.1,2932.1,3.73335807]
[1769003644157,0.17058,2934.1,2932.1,3.73335807]
[1769003646261,0.17058,2934.1,2932.3,3.55753713]
[1769003646563,0.17058,2934.1,2932.5,3.55753713]
[1769003646765,0.17059,2934.0,2932.5,3.55753713]
[1769003649071,3.491113,2934.6,2932.6,0.17067]
[1769003649267,0.17056,2934.6,2932.7,6.01593268]
[1769003649471,0.17053,2935.0,2933.1,3.55753713]
[1769003649663,3.320553,2935.1,2933.1,3.55753713]
[1769003650072,3.320553,2935.1,2933.8,0.00512094]
[1769003650271,0.2545284,2935.3,2932.8,2.45839555]
[1769003650272,0.17056,2934.5,2932.8,2.45839555]
[1769003650470,0.17056,2934.5,2932.7,6.01593268]
[1769003650471,3.491113,2934.5,2932.7,6.01593268]
[1769003650664,3.320553,2934.5,2932.7,6.01593268]
[1769003650968,3.320553,2934.5,2932.7,3.55753713]
[1769003651268,3.3230925,2934.5,2932.8,3.55753713]
[1769003651464,0.17058,2934.2,2932.8,3.55753713]
[1769003652475,0.17058,2934.2,2932.9,3.55753713]
[1769003653274,0.17058,2934.2,2932.9,6.01593268]
[1769003654171,0.17058,2934.2,2933.0,3.55753713]
[1769003654865,0.0025395,2934.5,2933.0,3.55753713]
[1769003655266,0.0025395,2934.5,2933.1,3.55753713]
[1769003655868,0.0025395,2934.5,2933.2,3.34678033]
[1769003658081,0.17052,2935.2,2933.4,3.34678033]
[1769003658268,0.17052,2935.2,2933.5,3.34678033]
[1769003658672,0.00511169,2934.6,2934.1,0.00511169]
[1769003659077,0.17052,2935.2,2934.1,3.35189202]
[1769003660275,0.2545284,2935.3,2934.1,3.35189202]
[1769003663277,0.17049,2935.7,2934.1,3.35189202]
[1769003663781,3.6604319,2936.5,2934.1,3.35189202]
[1769003663782,0.17046,2936.2,2934.3,3.34678033]
[1769003664281,3.6604319,2936.5,2934.3,3.34678033]
[1769003664980,3.6604319,2936.5,2934.4,3.34678033]
[1769003665277,0.17048,2935.9,2934.4,3.34678033]
[1769003665483,0.1705,2935.5,2934.1,0.00511169]
[1769003665678,0.1705,2935.5,2934.1,3.35189202]
[1769003666279,0.1705,2935.5,2934.2,3.34678033]
[1769003668677,0.17051,2935.4,2934.2,3.34678033]
[1769003669070,3.6604319,2936.8,2934.2,3.34678033]
[1769003669375,3.6604319,2936.5,2934.2,3.34678033]
[1769003669569,3.6604319,2936.3,2934.2,3.34678033]
[1769003669775,0.17049,2935.8,2934.2,3.34678033]
[1769003670883,0.1705,2935.6,2934.2,3.34678033]
[1769003671278,0.17051,2935.4,2934.2,3.34678033]
[1769003671581,0.17051,2935.3,2934.2,3.34678033]
[1769003671770,0.17051,2935.3,2934.1,9.48211169]
[1769003671771,0.17054,2935.0,2934.1,0.00511169]
[1769003671975,1.895,2936.1,2934.1,0.00511169]
[1769003671976,0.17055,2934.8,2934.1,0.00511169]
[1769003672572,0.17056,2934.6,2934.1,1.69e-06]
[1769003672771,0.17056,2934.6,2933.4,3.34678033]
[1769003673378,0.17056,2934.6,2933.0,2.45839555]
[1769003673379,0.17057,2934.4,2933.0,3.34678033]
[1769003673889,0.17057,2934.4,2933.4,0.00511169]
[1769003675388,0.17053,2935.0,2933.4,3.35189202]
[1769003675889,0.17054,2934.9,2933.4,3.35189202]
[1769003676280,0.17056,2934.6,2933.4,3.35189202]
[1769003677584,3.6604319,2935.2,2933.4,0.00511169]
[1769003677982,1.895,2935.7,2933.4,0.00511169]
[1769003677983,3.6604319,2935.0,2933.4,0.00511169]
[1769003678384,0.17057,2934.4,2933.4,0.00511169]
[1769003678591,0.17058,2934.2,2933.4,0.00511169]
[1769003687901,0.17058,2934.1,2933.4,0.00511169]
[1769003690101,3.26618823,2934.5,2933.4,0.00511169]
[1769003690308,0.1706,2933.9,2932.9,2.45839555]
[1769003691405,0.17062,2933.6,2932.8,2.45839555]
[1769003692112,0.17062,2933.6,2932.9,0.00511169]
[1769003692500,0.17062,2933.5,2932.9,0.00511169]
[1769003693605,3.27129992,2934.0,2932.9,0.00511169]
[1769003693909,0.17570169,2934.0,2932.9,3.35917585]
[1769003694309,0.1706,2933.8,2932.9,3.35917585]
[1769003696411,0.1706,2933.8,2932.9,5.8175714]
[1769003696805,0.1706,2933.8,2932.9,3.35917585]
[1769003697402,0.17061,2933.7,2932.9,5.8175714]
[1769003697607,0.17061,2933.7,2932.9,2.46350724]
[1769003699414,0.17063,2933.3,2932.8,2.44769821]
[1769003699611,0.17063,2933.3,2932.7,0.00369654]
[1769003700114,0.17064,2933.2,2932.2,6.45991671]
[1769003700320,1.27210311,2933.6,2932.0,3.05068255]
[1769003700610,0.17066,2932.8,2931.8,3.40923416]
[1769003701210,0.17463457,2932.8,2931.8,3.41356423]
[1769003703517,0.00397457,2932.8,2931.8,3.41356423]
[1769003703717,0.17067,2932.6,2931.8,3.41356423]
[1769003704114,0.00511169,2932.5,2931.8,3.41356423]
[1769003704817,0.1707,2932.1,2931.8,0.00433007]
[1769003705022,0.1707,2932.1,2930.7,3.32705584]
[1769003705720,0.1707,2932.1,2930.7,3.05068255]
[1769003705919,0.1707,2932.1,2930.7,3.05333275]
[1769003706515,0.1707,2932.1,2930.7,0.0026502]
[1769003706715,0.1707,2932.1,2930.8,3.40923416]
[1769003709425,0.1707,2932.1,2930.8,5.84971394]
[1769003709724,0.1707,2932.1,2930.9,3.40923416]
[1769003710325,0.00511169,2932.5,2930.9,3.40923416]
[1769003710726,0.17579169,2932.5,2930.9,3.40923416]
[1769003710923,0.17068,2932.4,2930.9,3.40923416]
[1769003712925,0.17068,2932.4,2931.1,3.40923416]
[1769003713120,0.00511169,2932.5,2931.1,3.40923416]
[1769003713527,0.17072,2931.9,2931.1,3.40923416]
[1769003717322,0.17069,2932.4,2931.1,3.40923416]
[1769003717736,0.1707,2932.2,2931.1,3.40923416]
[1769003719338,0.1707,2932.1,2931.1,3.40923416]
[1769003719942,0.17071,2932.0,2931.1,3.40923416]
[1769003722143,0.17072,2931.8,2931.1,3.40923416]
[1769003722645,0.00511169,2932.5,2931.1,3.40923416]
[1769003723145,0.17071,2931.9,2931.1,3.40923416]
[1769003724838,0.00511169,2932.5,2931.1,3.40923416]
[1769003726735,0.17069,2932.3,2931.1,3.40923416]
[1769003727042,0.00511169,2932.5,2931.4,3.72313777]
[1769003727347,0.00511169,2932.5,2931.4,6.16361755]
[1769003727540,0.00511169,2932.5,2931.5,3.72313777]
[1769003728448,0.00511169,2932.5,2931.8,3.72313777]
[1769003728848,0.17067,2932.7,2931.8,3.72313777]
[1769003729850,0.00397457,2932.8,2931.8,3.72313777]
[1769003730549,0.17067,2932.7,2931.8,3.72313777]
[1769003730853,0.1706,2933.9,2932.6,6.16361755]
[1769003731156,0.00511169,2933.5,2932.7,3.72313777]
[1769003731656,0.17061,2933.7,2932.9,3.72313777]
[1769003731854,0.17058,2934.2,2933.0,2.44047978]
[1769003732044,2.60315563,2935.2,2933.1,3.72313777]
[1769003732045,3.81856448,2935.2,2933.1,3.72313777]
[1769003732248,0.17058,2934.2,2933.1,3.72313777]
[1769003732853,0.17059,2934.1,2933.1,3.72675835]
[1769003733160,0.1706,2933.8,2933.1,3.72675835]
[1769003735253,0.17061,2933.7,2933.1,0.00362058]
[1769003736457,0.17061,2933.7,2933.1,3.72675835]
[1769003737752,0.17061,2933.6,2933.1,3.72675835]
[1769003741063,0.17063,2933.4,2932.8,0.00511169]
[1769003742155,0.17063,2933.4,2932.8,0.0091578]
[1769003744769,0.00511169,2933.9,2932.8,3.73229557]
[1769003745166,0.17571169,2933.9,2932.8,3.73229557]
[1769003746168,0.1706,2933.8,2932.8,3.73229557]
[1769003748875,0.1706,2933.8,2933.2,1.13749738]
[1769003749066,0.1706,2933.8,2933.2,4.67991947]
[1769003749268,0.1706,2933.8,2933.3,3.54242209]
[1769003749467,0.17169837,2934.2,2933.5,4.67991947]
[1769003749671,0.00111837,2934.2,2933.9,3.54242209]
[1769003749870,0.17055,2934.7,2933.9,3.54242209]
[1769003750674,0.17055,2934.7,2934.0,0.00511169]
[1769003750974,0.16472694,2934.7,2934.0,0.00511169]
[1769003751276,0.16472694,2934.7,2934.0,3.54753378]
[1769003752179,0.16472694,2934.7,2934.0,1.69e-06]
[1769003752180,0.00509658,2934.6,2934.0,1.69e-06]
[1769003753079,0.17058,2934.2,2934.0,1.69e-06]
[1769003753281,0.17058,2934.2,2933.6,3.54242209]
[1769003754380,0.17058,2934.2,2933.6,3.54753378]
[1769003758775,0.00362058,2934.7,2933.6,3.54753378]
[1769003758980,0.00362058,2934.7,2934.0,3.57401685]
[1769003760279,0.00362058,2934.7,2933.7,2.44047978]
[1769003760489,0.00362058,2934.7,2933.8,3.57401685]
[1769003760784,0.00362058,2934.7,2934.0,3.57401685]
[1769003761969,0.17057,2934.3,2933.7,2.44047978]
[1769003762181,0.17057,2934.3,2933.6,3.57912854]
[1769003764484,0.00362058,2934.7,2933.6,3.57912854]
[1769003764885,0.17417058,2934.7,2933.6,3.57912854]
[1769003765982,0.00362058,2934.7,2933.6,3.57912854]
[1769003766681,0.00362058,2934.7,2933.7,6.01449663]
[1769003766881,0.17054,2934.9,2934.0,3.57401685]
[1769003769090,3.23876582,2935.9,2934.0,3.57401685]
[1769003769388,0.17055,2934.8,2934.0,3.57401685]
[1769003769784,3.23340701,2935.7,2934.0,3.57401685]
[1769003769985,0.17056,2934.6,2934.0,3.57401685]
[1769003770387,3.23340701,2935.7,2933.6,6.01960832]
[1769003770589,3.24441389,2935.5,2933.6,3.57912854]
[1769003770787,3.24441389,2935.3,2933.6,3.57912854]
[1769003770995,0.17057,2934.3,2933.6,3.57912854]
[1769003772391,4.45283195,2935.7,2933.7,3.57401685]
[1769003772591,0.17055,2934.7,2933.7,3.57401685]
[1769003774186,0.17055,2934.7,2933.9,3.57401685]
[1769003774789,1.21540885,2935.9,2933.9,3.57401685]
[1769003774989,0.32625339,2935.8,2933.9,3.57401685]
[1769003775192,0.17053,2935.0,2933.9,3.57401685]
[1769003776384,0.17053,2935.0,2934.0,3.55727583]
[1769003776889,4.75843984,2935.9,2934.0,3.55727583]
[1769003777088,0.17055,2934.8,2934.0,3.55727583]
[1769003778488,0.17055,2934.8,2934.0,5.99775561]
[1769003778693,0.17055,2934.8,2934.1,3.55727583]
[1769003782091,1.21540885,2935.7,2934.1,3.55727583]
[1769003782393,0.17056,2934.6,2933.9,2.44047978]
[1769003783701,3.54303099,2935.4,2933.9,2.44047978]
[1769003783901,0.17055,2934.7,2933.9,2.44047978]
[1769003784098,0.17056,2934.6,2933.9,2.44047978]
[1769003785002,3.54303099,2935.4,2933.9,2.44047978]
[1769003785204,1.18620233,2935.3,2933.9,2.44047978]
[1769003785515,0.17057,2934.4,2933.9,2.44047978]
[1769003785694,0.17057,2934.4,2933.8,2.44047978]
[1769003787101,1.21540885,2935.5,2933.9,3.55727583]
[1769003787294,0.17054,2934.9,2934.0,3.55727583]
[1769003787997,0.17054,2934.9,2934.0,5.99775561]
[1769003788201,0.17054,2934.9,2933.6,0.00511169]
[1769003788202,0.17054,2934.9,2934.2,3.55727583]
[1769003790009,4.75843984,2935.8,2934.2,3.55727583]
[1769003790207,0.17056,2934.6,2934.1,2.44047978]
[1769003790404,1.21540885,2936.7,2934.3,3.55727583]
[1769003790607,3.54303099,2937.3,2935.3,6.01027483]
[1769003790801,3.54303099,2936.9,2936.0,0.00511169]
[1769003791004,3.54814268,2936.6,2935.3,0.00309977]
[1769003791202,3.54814268,2936.6,2934.6,2.452999]
[1769003791203,0.1705,2935.6,2934.6,2.452999]
[1769003791408,3.54303099,2936.5,2934.7,0.4490536]
[1769003791607,0.1705,2935.6,2934.8,0.4490536]
[1769003791809,0.1705,2935.6,2934.9,0.4490536]
[1769003792011,0.1705,2935.6,2935.0,0.4490536]
[1769003792210,0.1705,2935.6,2935.1,0.4490536]
[1769003792407,0.1705,2935.6,2935.2,0.4490536]
[1769003792608,3.54303099,2936.5,2935.3,3.6e-06]
[1769003792807,0.17052,2935.3,2935.0,0.00327114]
[1769003793013,0.17053,2935.1,2934.5,3.55727583]
[1769003794112,0.17053,2935.1,2934.5,3.56116034]
[1769003794410,0.17053,2935.1,2934.5,0.00388451]
[1769003794712,3.54303099,2936.0,2934.5,0.00388451]
[1769003795013,0.86476057,2935.9,2934.5,0.00388451]
[1769003795311,0.17052,2935.2,2934.5,0.00388451]
[1769003796912,0.17053,2935.1,2934.5,0.00388451]
[1769003798011,0.17053,2935.0,2934.5,0.00388451]
[1769003798814,0.17053,2935.0,2934.1,3.55727583]
[1769003799610,0.17049,2935.7,2934.1,3.55727583]
[1769003799914,0.17049,2935.7,2934.8,3.55727583]
[1769003800608,0.17049,2935.7,2934.8,6.01027483]
[1769003800806,0.17049,2935.7,2934.9,3.55727583]
[1769003801006,0.17049,2935.7,2934.9,6.01027483]
[1769003801209,0.00309977,2936.6,2935.0,3.55727583]
[1769003801408,0.00309977,2936.6,2935.0,6.01027483]
[1769003801409,0.17047,2936.1,2935.0,6.01027483]
[1769003801619,0.17047,2936.1,2935.1,3.55727583]
[1769003803223,0.17047,2936.0,2935.1,3.55727583]
[1769003804718,0.17048,2935.9,2935.1,3.55727583]
[1769003804915,3.54613076,2936.6,2934.9,2.452999]
[1769003805216,3.54613076,2936.6,2934.9,3.55727583]
[1769003805422,0.17048,2935.9,2934.9,3.55727583]
[1769003805820,0.00309977,2936.6,2934.9,3.55727583]
[1769003805821,0.1705,2935.6,2934.9,3.55727583]
[1769003806125,3.44976283,2936.6,2934.9,3.55727583]
[1769003806126,0.1705,2935.5,2934.9,3.55727583]
[1769003807413,0.1705,2935.5,2934.7,2.452999]
[1769003807414,0.17052,2935.3,2934.5,2.452999]
[1769003807618,0.17052,2935.3,2934.5,6.14194588]
[1769003809630,0.17052,2935.3,2934.6,3.68894688]
[1769003810127,0.00309977,2936.6,2934.6,3.68894688]
[1769003810331,0.17049,2935.7,2934.6,3.68894688]
[1769003810632,0.1705,2935.5,2934.6,3.68894688]
[1769003811620,0.17048,2935.9,2934.7,3.68894688]
[1769003811823,0.00309977,2936.6,2934.8,6.14194588]
[1769003812024,0.00309977,2936.6,2935.0,6.14194588]
[1769003812225,0.00309977,2936.6,2935.2,3.68894688]
[1769003812426,0.00309977,2936.6,2935.3,3.68894688]
[1769003812922,0.00309977,2936.6,2935.6,6.14194588]
[1769003813131,0.00309977,2936.6,2935.8,3.68894688]
[1769003813320,0.17043,2936.7,2935.8,3.68894688]
[1769003814332,0.17410123,2936.7,2935.8,3.68894688]
[1769003817738,3.44666306,2938.1,2935.8,3.68894688]
[1769003817937,0.17041,2937.1,2935.8,3.68894688]
[1769003818831,0.17281196,2937.1,2935.8,3.68894688]
[1769003819138,0.17042,2937.0,2935.8,3.68894688]
[1769003819437,0.17042,2936.9,2935.8,3.68894688]
[1769003820039,0.17043,2936.7,2935.8,3.68894688]
[1769003820334,0.17043,2936.7,2935.4,3.05068255]
[1769003820335,3.44773554,2937.1,2935.4,5.50368155]
[1769003820634,3.44533358,2936.8,2935.0,3.41044415]
[1769003820938,0.17051,2935.4,2934.5,3.41044415]
[1769003821241,0.17052,2935.3,2934.5,3.41044415]
[1769003822631,0.17052,2935.3,2934.2,2.452999]
[1769003822835,0.17056,2934.6,2934.1,4.85e-06]
[1769003823035,0.17056,2934.6,2933.5,3.41044415]
[1769003823437,0.17056,2934.5,2934.1,1.69e-06]
[1769003823741,0.17056,2934.5,2933.5,3.41044415]
[1769003823934,0.17410083,2934.5,2933.5,3.41292965]
[1769003826944,0.17052,2935.2,2933.5,3.41292965]
[1769003827446,0.17052,2935.2,2933.8,5.86344315]
[1769003827644,0.17052,2935.2,2933.9,3.41044415]
[1769003828033,0.17473844,2935.2,2933.9,3.41044415]
[1769003828640,0.17049,2935.8,2934.1,3.41044415]
[1769003828938,3.44533358,2936.7,2934.1,3.41044415]
[1769003829242,3.44533358,2936.5,2934.1,3.41044415]
[1769003829441,0.17051,2935.4,2934.1,3.41044415]
[1769003832142,0.17048,2935.9,2934.2,3.41044415]
[1769003832542,0.17048,2935.9,2934.3,3.41044415]
[1769003833944,0.17049,2935.8,2934.5,3.41044415]
[1769003834140,0.1705,2935.6,2934.5,3.41044415]
[1769003835945,3.67995766,2936.9,2934.5,3.41044415]
[1769003836144,0.17046,2936.2,2934.7,3.7227702]
[1769003836449,0.17047,2936.1,2935.4,0.00511169]
[1769003836650,0.17047,2936.0,2935.4,0.00511169]
[1769003836942,0.17049,2935.8,2935.4,0.00511169]
[1769003837150,0.17049,2935.7,2935.4,1.69e-06]
[1769003837344,0.1705,2935.6,2934.5,3.7227702]
[1769003838138,0.00511169,2936.0,2934.5,3.7227702]
[1769003838338,0.00511169,2936.0,2934.6,3.7227702]
[1769003838548,0.17046,2936.2,2934.8,6.1757692]
[1769003839052,0.17046,2936.2,2934.9,3.7227702]
[1769003839745,0.17046,2936.2,2935.0,3.7227702]
[1769003840148,3.67995766,2937.6,2935.0,3.7227702]
[1769003840339,0.17044,2936.6,2935.1,3.7227702]
[1769003840540,0.17044,2936.6,2935.3,3.7227702]
[1769003840940,0.17045,2936.5,2935.3,3.7227702]
[1769003841639,0.17045,2936.5,2935.3,6.1757692]
[1769003841846,0.17045,2936.5,2935.4,3.7227702]
[1769003843948,0.17042,2936.9,2935.4,3.7227702]
[1769003844957,0.17043,2936.8,2935.4,3.7227702]
[1769003845157,0.17043,2936.8,2935.5,3.7227702]
[1769003845357,0.17043,2936.7,2935.5,3.7227702]
[1769003845953,0.17044,2936.6,2935.5,3.7227702]
[1769003846151,0.17044,2936.5,2935.5,3.7227702]
[1769003846656,0.17044,2936.5,2935.7,0.00511169]
[1769003846857,0.17044,2936.5,2935.7,3.73057636]
[1769003847059,0.17044,2936.6,2935.7,0.00780616]
[1769003847259,0.17045,2936.5,2935.7,0.00780616]
[1769003847759,0.17045,2936.4,2935.7,0.00780616]
[1769003849455,0.17046,2936.3,2935.7,0.00780616]
[1769003854758,3.67995766,2937.1,2935.7,0.00780616]
[1769003855154,0.17048,2936.0,2935.7,6.16e-06]
[1769003855349,0.17048,2936.0,2935.0,2.452999]
[1769003856351,0.17316591,2936.0,2935.0,2.452999]
[1769003856556,0.17316591,2936.0,2935.0,2.45691243]
[1769003857356,0.17316591,2936.0,2935.1,2.452999]
[1769003857758,0.17048,2935.9,2935.1,2.452999]